bitfinex/quotes_ETHUSD_20250214
["timestamp","ask_amount","ask_price","bid_price","bid_amount"]
[1739530888035,3.69356,2707.5,2707.2,0.21970455]
[1739530888234,3.69344,2707.5,2707.2,0.21970455]
[1739530889442,4.4987,2707.6,2707.2,0.21970455]
[1739530889646,3.69346,2707.5,2707.2,0.21970455]
[1739530890025,3.69361,2707.4,2707.2,0.21970455]
[1739530890644,3.69371,2707.3,2707.2,0.21970455]
[1739530890972,5.237742,2707.3,2707.2,0.21970455]
[1739530891337,3.69385,2707.2,2707.1,0.2488]
[1739530891635,3.69385,2707.2,2707.1,0.46875386]
[1739530891835,1.544032,2707.3,2707.1,0.46875386]
[1739530892376,0.8053,2707.3,2707.1,0.46875386]
[1739530892972,4.49909,2707.3,2707.1,0.46875386]
[1739530893336,6.1253,2707.5,2707.1,0.46875386]
[1739530893599,6.1253,2707.5,2707.1,1.29895386]
[1739530894272,3.6936,2707.4,2707.1,0.46875386]
[1739530894474,7.3873,2707.4,2707.1,0.46875386]
[1739530894661,3.6936,2707.4,2707.1,0.46875386]
[1739530894865,3.69371,2707.3,2707.1,0.46875386]
[1739530895471,7.38728,2707.4,2707.1,0.46875386]
[1739530896144,3.69373,2707.3,2707.1,0.46875386]
[1739530896741,3.6936,2707.4,2707.1,0.46875386]
[1739530897269,7.38728,2707.4,2707.1,0.46875386]
[1739530897484,3.6936,2707.4,2707.1,0.46875386]
[1739530897651,3.69379,2707.3,2707.1,0.46875386]
[1739530898765,0.98189,2707.4,2707.1,0.46875386]
[1739530898947,3.69359,2707.4,2707.1,0.46875386]
[1739530899149,6.1253,2707.5,2707.1,4.16267386]
[1739530899655,6.1253,2707.5,2707.1,0.46875386]
[1739530899878,5.32,2707.5,2707.1,0.46875386]
[1739530900078,9.01346,2707.5,2707.1,0.46875386]
[1739530900412,5.32,2707.5,2707.1,4.16260386]
[1739530900749,9.01345,2707.5,2707.1,0.46875386]
[1739530901554,5.32,2707.5,2707.2,0.7866]
[1739530901752,0.7582,2707.7,2707.2,0.7866]
[1739530902066,7.63503,2708.1,2707.5,0.7866]
[1739530902276,3.94231,2708.1,2707.6,3.69328]
[1739530902445,3.94231,2708.1,2707.6,3.91296515]
[1739530902878,3.69277,2708.0,2707.6,3.91296515]
[1739530903072,3.69277,2708.0,2707.6,0.21968515]
[1739530903565,7.63507,2708.1,2707.6,3.91297515]
[1739530903891,3.69276,2708.0,2707.6,3.91297515]
[1739530904249,3.94229,2708.1,2707.6,3.91297515]
[1739530904456,0.2496,2708.1,2707.7,3.69314]
[1739530904925,0.2496,2708.1,2707.8,0.21945739]
[1739530907672,0.2496,2708.1,2707.9,0.7866]
[1739530907903,3.69251,2708.2,2708.0,0.21895886]
[1739530910507,3.6923,2708.4,2708.0,0.21895886]
[1739530911042,3.6923,2708.4,2708.0,3.91170886]
[1739530912308,4.45028,2708.5,2708.0,3.91170886]
[1739530913549,3.69221,2708.4,2708.0,3.91170886]
[1739530913955,3.69221,2708.4,2708.0,0.21895886]
[1739530914314,3.69204,2708.6,2708.0,0.21895886]
[1739530914518,3.69203,2708.6,2708.2,0.8073]
[1739530914821,3.69203,2708.6,2708.3,0.21844815]
[1739530914822,7.3841,2708.6,2708.3,0.21844815]
[1739530915158,3.69203,2708.6,2708.2,0.8073]
[1739530915351,3.69203,2708.6,2708.4,0.21815765]
[1739530915529,3.69208,2708.5,2708.2,0.8073]
[1739530915856,3.69208,2708.5,2708.3,0.21827148]
[1739530916300,3.69208,2708.5,2708.2,0.8073]
[1739530916588,3.69208,2708.5,2708.3,0.21827148]
[1739530917083,3.69208,2708.5,2708.2,0.8073]
[1739530917291,3.69208,2708.5,2708.4,0.21815765]
[1739530917474,3.69208,2708.5,2708.3,0.21827148]
[1739530917785,3.69208,2708.5,2708.4,0.21815765]
[1739530918175,3.69208,2708.5,2708.2,0.8073]
[1739530918482,3.69208,2708.5,2708.4,0.21815765]
[1739530918685,3.69208,2708.5,2708.3,0.21827148]
[1739530918985,3.69208,2708.5,2708.4,0.21815765]
[1739530919375,3.69208,2708.5,2708.2,0.8073]
[1739530919754,3.69208,2708.5,2708.3,0.21827148]
[1739530919947,3.69208,2708.5,2708.2,0.8073]
[1739530920150,3.69208,2708.5,2708.3,0.21827148]
[1739530920494,3.69208,2708.5,2708.2,0.8073]
[1739530920795,3.69208,2708.5,2708.3,0.21827148]
[1739530921291,3.69199,2708.6,2708.2,0.8073]
[1739530921459,3.69168,2708.8,2708.4,0.21815765]
[1739530921666,8.35786379,2708.8,2708.3,3.91055148]
[1739530921904,3.69168,2708.8,2708.5,0.21804383]
[1739530922047,3.69168,2708.8,2708.4,0.21815765]
[1739530922248,3.69168,2708.8,2708.6,0.21793002]
[1739530922495,7.38342,2708.8,2708.5,0.21804383]
[1739530922680,7.38342,2708.8,2708.3,3.69228]
[1739530922681,3.69168,2708.8,2708.7,0.21781622]
[1739530922886,5.11510679,2708.8,2708.6,0.21793002]
[1739530923090,8.80687679,2708.8,2708.7,0.21781622]
[1739530923399,8.80687679,2708.8,2708.3,3.69228]
[1739530923691,3.69168,2708.8,2708.7,0.21781622]
[1739530923920,6.1187,2708.9,2708.7,0.21781622]
[1739530924076,4.41633791,2709.0,2708.6,0.8073]
[1739530924276,3.69148,2709.0,2708.8,0.21770243]
[1739530924481,3.69148,2709.0,2708.7,0.21781622]
[1739530924716,3.69148,2709.0,2708.9,0.21758865]
[1739530924872,4.48989,2709.2,2708.9,0.21758865]
[1739530925079,4.938879,2709.2,2708.9,0.21758865]
[1739530925280,3.69126,2709.1,2708.9,0.21758865]
[1739530925481,3.69126,2709.1,2709.0,0.21729071]
[1739530925888,3.69142,2709.0,2708.6,0.8073]
[1739530926696,3.69159,2708.9,2708.6,0.8073]
[1739530927018,3.69159,2708.9,2708.6,0.2573]
[1739530927625,3.69167,2708.8,2708.1,5.44177882]
[1739530927793,3.69167,2708.8,2707.4,0.0075]
[1739530927794,3.69222,2708.4,2707.8,11.38467882]
[1739530927999,3.69243,2708.3,2707.8,3.6929]
[1739530928320,3.69243,2708.3,2707.7,3.69305]
[1739530928897,3.69248,2708.2,2707.7,3.69305]
[1739530929607,3.69248,2708.2,2707.7,4.68088213]
[1739530929797,3.69248,2708.2,2707.7,5.16508213]
[1739530930611,3.69235,2708.3,2707.8,3.69302]
[1739530931403,0.7866,2708.4,2707.8,3.69302]
[1739530931707,3.69217,2708.5,2708.1,0.4842]
[1739530931901,7.38436,2708.5,2708.1,0.4842]
[1739530932144,8.201456,2708.5,2708.1,0.4842]
[1739530932635,3.69217,2708.5,2708.1,0.4842]
[1739530932999,3.69217,2708.5,2708.2,0.21801697]
[1739530933199,0.7866,2708.6,2708.2,0.21801697]
[1739530933422,2.44177882,2709.4,2708.3,3.69228]
[1739530933623,4.47788,2709.1,2708.4,4.17634]
[1739530933828,3.69139,2709.0,2708.4,4.39412931]
[1739530934229,3.69147,2709.0,2708.4,0.70198931]
[1739530934642,3.69189,2708.7,2708.4,0.70198931]
[1739530934842,8.17037,2708.7,2708.4,0.21778931]
[1739530935075,3.69195,2708.6,2708.1,4.1767]
[1739530935752,3.69195,2708.6,2708.2,0.21809213]
[1739530936248,0.817043,2708.6,2708.2,0.21809213]
[1739530936405,3.69235,2708.3,2708.2,0.21809213]
[1739530936607,4.47895,2708.3,2707.7,4.1773]
[1739530936841,4.47895,2708.3,2708.2,0.2180771]
[1739530937145,4.47895,2708.3,2707.8,3.69302]
[1739530937146,5.29606,2708.3,2707.8,3.69302]
[1739530937443,4.47895,2708.3,2707.8,3.69302]
[1739530937649,4.47895,2708.3,2707.9,0.21841865]
[1739530937851,3.6925,2708.2,2707.7,4.17728]
[1739530938023,4.47895,2708.3,2708.0,0.21830479]
[1739530938222,4.47895,2708.3,2707.7,4.17726]
[1739530938517,4.47895,2708.3,2708.1,0.21819094]
[1739530938901,0.7866,2708.3,2708.2,0.2180771]
[1739530939184,0.7866,2708.3,2707.9,3.69289]
[1739530939185,4.47872,2708.5,2708.0,3.69275]
[1739530939387,4.47872,2708.5,2707.9,3.69289]
[1739530939388,3.69229,2708.4,2708.2,0.21832141]
[1739530939584,3.69229,2708.4,2708.1,0.21846908]
[1739530939745,7.3846,2708.4,2707.9,3.69289]
[1739530939941,7.3846,2708.4,2708.0,0.21858293]
[1739530940146,3.69229,2708.4,2708.0,0.21858293]
[1739530940866,7.38461,2708.4,2708.0,0.21858293]
[1739530941988,3.69229,2708.4,2708.0,0.21858293]
[1739530942159,7.38458,2708.4,2708.0,0.21858293]
[1739530942496,3.69229,2708.4,2708.0,0.21858293]
[1739530942702,7.38458,2708.4,2708.0,0.21858293]
[1739530942901,3.69229,2708.4,2708.0,0.21858293]
[1739530943088,7.38459,2708.4,2708.0,0.21858293]
[1739530943607,3.69229,2708.4,2708.0,0.21858293]
[1739530943896,4.47868,2708.5,2708.0,3.91131293]
[1739530944201,0.7866,2708.5,2708.1,4.17671]
[1739530944500,3.69204,2708.6,2708.1,4.39517908]
[1739530944697,3.69204,2708.6,2708.1,8.08771908]
[1739530945000,3.69204,2708.6,2708.1,4.39517908]
[1739530945601,3.69182,2708.7,2708.1,4.39517908]
[1739530945801,7.38372,2708.7,2708.2,4.20794914]
[1739530946098,3.69182,2708.7,2708.2,0.73391438]
[1739530946303,0.8048,2708.8,2708.4,3.69217]
[1739530946519,3.69161,2708.9,2708.5,0.4842]
[1739530946817,3.69161,2708.9,2708.5,0.70210852]
[1739530948015,3.69167,2708.8,2708.5,0.70210852]
[1739530948215,3.69156,2708.9,2708.5,0.70210852]
[1739530950014,3.69177,2708.8,2708.5,0.21790852]
[1739530951321,4.49633,2709.0,2708.5,0.21790852]
[1739530952232,0.8048,2709.0,2708.5,0.21790852]
[1739530952409,3.69156,2708.9,2708.5,0.21790852]
[1739530952910,3.69156,2708.9,2708.6,0.4842]
[1739530953278,3.69156,2708.9,2708.7,0.21747795]
[1739530955724,7.38318,2708.9,2708.7,0.21747795]
[1739530955949,3.69156,2708.9,2708.7,0.21747795]
[1739530956961,3.69167,2708.8,2708.7,0.21747795]
[1739530958035,0.8048,2709.0,2708.4,4.17639]
[1739530958235,3.69155,2708.9,2708.7,0.21747795]
[1739530958577,3.69155,2708.9,2708.8,0.21736416]
[1739530958763,4.49621,2709.0,2708.5,3.69201]
[1739530958959,4.49621,2709.0,2708.6,0.21759175]
[1739530959747,3.69155,2708.9,2708.6,0.21759175]
[1739530960241,3.69155,2708.9,2708.4,4.1764]
[1739530960441,3.69155,2708.9,2708.7,0.21747795]
[1739530960752,3.69155,2708.9,2708.8,0.21736416]
[1739530960951,3.69155,2708.9,2708.5,3.69207]
[1739530961161,0.8048,2709.0,2708.6,0.21759175]
[1739530961389,3.69161,2708.9,2708.4,4.17641]
[1739530961681,3.69161,2708.9,2708.5,0.21770556]
[1739530962076,3.69154,2708.9,2708.5,0.21770556]
[1739530962284,4.4962,2709.0,2708.5,3.90975556]
[1739530962642,8.18767,2709.0,2708.5,3.90975556]
[1739530962872,3.69153,2708.9,2708.5,0.21770556]
[1739530963180,3.69153,2708.9,2708.5,0.77095961]
[1739530963744,4.49625,2709.0,2708.5,0.77095961]
[1739530963939,3.69128,2709.1,2708.6,3.69187]
[1739530964171,3.69128,2709.1,2708.7,0.21743285]
[1739530964841,3.69128,2709.1,2708.8,0.4842]
[1739530965244,3.69128,2709.1,2708.9,0.21720527]
[1739530965551,3.69139,2709.0,2708.9,0.21720527]
[1739530965765,3.69139,2709.0,2708.6,0.4842]
[1739530965961,3.69139,2709.0,2708.7,0.21743285]
[1739530967676,3.69162,2708.9,2708.7,0.21743285]
[1739530967844,3.69139,2709.0,2708.5,3.69206]
[1739530968049,3.69139,2709.0,2708.8,0.21731905]
[1739530968264,3.69139,2709.0,2708.5,3.69207]
[1739530968448,3.69139,2709.0,2708.9,0.21720527]
[1739530968656,8.19778,2709.0,2708.5,3.69207]
[1739530968862,3.69139,2709.0,2708.9,0.21720527]
[1739530969077,0.7663,2708.9,2708.4,0.4842]
[1739530969275,3.69169,2708.8,2708.4,4.17638]
[1739530969458,4.45784,2708.9,2708.4,4.17638]
[1739530969676,3.69139,2709.0,2708.5,3.69201]
[1739530969993,3.69139,2709.0,2708.6,3.6919]
[1739530970393,0.7761,2709.1,2708.6,3.6919]
[1739530970552,3.69117,2709.2,2708.8,0.4842]
[1739530970951,3.69134,2709.1,2708.8,0.4842]
[1739530971576,0.7761,2708.9,2708.5,4.0378831]
[1739530972050,0.7761,2708.9,2708.5,3.69205]
[1739530972246,3.69147,2709.0,2708.5,7.38403]
[1739530972451,3.69147,2709.0,2708.5,3.69198]
[1739530973090,3.69147,2709.0,2708.5,7.38399]
[1739530973510,3.69147,2709.0,2708.5,3.69198]
[1739530973702,3.69155,2708.9,2708.5,3.69198]
[1739530974020,3.69147,2709.0,2708.5,3.69198]
[1739530975320,3.69147,2709.0,2708.6,0.34613751]
[1739530976122,7.38298,2709.0,2708.6,0.34613751]
[1739530976326,7.383,2709.0,2708.6,0.34613751]
[1739530976681,3.69147,2709.0,2708.5,3.69198]
[1739530977412,0.7761,2709.1,2708.5,3.69197]
[1739530977413,4.46737,2709.1,2708.5,3.69197]
[1739530977724,4.46737,2709.1,2708.5,4.109587]
[1739530977925,4.46737,2709.1,2708.6,3.69186]
[1739530978124,4.46737,2709.1,2708.7,0.4842]
[1739530978299,4.46737,2709.1,2708.7,0.70147507]
[1739530978990,4.46737,2709.1,2708.7,4.39326507]
[1739530979319,8.15871,2709.1,2708.7,0.70147507]
[1739530979518,4.46737,2709.1,2708.7,0.70147507]
[1739530979827,8.15871,2709.1,2708.7,0.70147507]
[1739530980002,3.69142,2709.0,2708.7,0.70147507]
[1739530980927,3.69155,2708.9,2708.7,0.70147507]
[1739530981134,3.69155,2708.9,2708.7,0.21727507]
[1739530981425,3.69155,2708.9,2708.5,0.4842]
[1739530981627,3.69141,2709.0,2708.6,0.21738887]
[1739530982135,8.1588,2709.1,2708.6,3.90927887]
[1739530982533,3.69147,2709.0,2708.6,0.21738887]
[1739530984831,3.69155,2708.9,2708.6,0.21738887]
[1739530985209,3.69141,2709.0,2708.6,0.21738887]
[1739530986510,3.69141,2709.0,2708.6,3.90931887]
[1739530987897,3.69141,2709.0,2708.6,0.21738887]
[1739530989937,0.7761,2709.1,2708.6,0.21738887]
[1739530989938,3.69126,2709.1,2708.6,0.21738887]
[1739530990142,3.69126,2709.1,2708.6,3.90931887]
[1739530990328,3.6914,2709.0,2708.6,3.90931887]
[1739530991238,3.6914,2709.0,2708.6,0.21738887]
[1739530991408,3.6914,2709.0,2708.6,3.90929887]
[1739530991609,3.69129,2709.1,2708.6,3.90929887]
[1739530991961,3.69129,2709.1,2708.8,0.4842]
[1739530992307,3.69122,2709.2,2708.9,0.21700238]
[1739530992510,0.452042,2709.2,2708.9,0.21700238]
[1739530992742,3.69126,2709.1,2708.9,0.21700238]
[1739530993241,4.143262,2709.2,2708.9,0.21700238]
[1739530993402,4.143252,2709.2,2708.9,0.21700238]
[1739530993798,3.69127,2709.1,2708.9,0.21700238]
[1739530994243,4.52047,2709.3,2708.9,0.21700238]
[1739530994420,1.281447,2709.3,2708.9,3.90844238]
[1739530994716,3.69091,2709.4,2708.9,3.90844238]
[1739530995111,3.691,2709.3,2708.9,3.90844238]
[1739530995311,8.21108,2709.5,2709.1,0.4842]
[1739530995510,3.69085,2709.4,2709.1,0.4842]
[1739530995715,3.69099,2709.3,2709.2,0.21666108]
[1739530995944,4.512114,2709.3,2709.2,0.21666108]
[1739530996129,3.69122,2709.2,2708.9,0.4842]
[1739530997974,0.8294,2709.2,2708.4,3.69211]
[1739530998174,3.69147,2709.0,2708.5,0.4842]
[1739530998522,3.69147,2709.0,2708.5,4.17626]
[1739530999080,3.69126,2709.1,2708.5,0.4842]
[1739530999391,3.69152,2709.0,2708.5,0.4842]
[1739530999583,3.69152,2709.0,2708.6,0.34624887]
[1739530999892,3.69157,2708.9,2708.6,0.34624887]
[1739531000052,3.69152,2709.0,2708.6,0.34624887]
[1739531000053,3.6918,2708.7,2708.6,0.34624887]
[1739531000254,4.5259,2708.7,2708.6,0.34624887]
[1739531000677,0.8266,2708.5,2707.9,0.34624887]
[1739531000886,3.69262,2708.1,2707.9,0.34624887]
[1739531001792,3.69262,2708.1,2707.8,0.4842]
[1739531002013,3.69278,2708.0,2707.5,2.43847542]
[1739531002156,3.69278,2708.0,2707.5,5.12704323]
[1739531002360,3.69278,2708.0,2707.6,0.21058123]
[1739531003198,8.21119,2708.4,2707.7,3.69315]
[1739531003401,3.69215,2708.5,2707.9,3.69279]
[1739531003602,3.69215,2708.5,2708.0,0.4842]
[1739531003768,3.69222,2708.4,2708.0,0.69432575]
[1739531004190,3.69236,2708.3,2708.0,0.69432575]
[1739531004391,3.69249,2708.2,2708.0,0.21012575]
[1739531004782,3.69249,2708.2,2707.8,0.4842]
[1739531004978,3.69249,2708.2,2707.9,0.21023961]
[1739531005186,3.69276,2708.0,2707.9,0.21023961]
[1739531005382,4.062036,2708.0,2707.4,0.4842]
[1739531005708,3.69305,2707.8,2707.5,0.21069513]
[1739531006069,4.51956,2707.9,2707.5,0.21069513]
[1739531007204,3.69308,2707.8,2707.5,0.21069513]
[1739531008807,4.51952,2707.9,2707.5,0.21069513]
[1739531011170,0.8266,2707.9,2707.5,0.21069513]
[1739531011374,4.5195,2707.9,2707.5,0.21069513]
[1739531012080,3.69304,2707.8,2707.5,0.21069513]
[1739531014132,4.51956,2707.9,2707.5,0.21069513]
[1739531014967,0.8266,2707.9,2707.5,0.21069513]
[1739531015272,3.69303,2707.8,2707.5,0.21069513]
[1739531016762,3.69326,2707.7,2707.5,0.21069513]
[1739531016947,3.69303,2707.8,2707.5,0.21069513]
[1739531018177,4.5196,2707.9,2707.5,0.21069513]
[1739531019671,0.8266,2707.9,2707.5,3.90412513]
[1739531019878,3.69269,2708.1,2707.6,3.69325]
[1739531020036,3.69282,2708.0,2707.5,3.90412513]
[1739531020439,3.69282,2708.0,2707.6,3.6933]
[1739531020641,3.69282,2708.0,2707.7,0.21147834]
[1739531020862,3.69282,2708.0,2707.5,3.69341]
[1739531021083,3.69282,2708.0,2707.6,0.21159222]
[1739531021485,4.144089,2708.1,2707.6,3.90486222]
[1739531021788,3.69263,2708.1,2707.6,3.90483222]
[1739531021988,3.69263,2708.1,2707.7,0.4842]
[1739531022165,4.5142,2708.4,2707.8,3.69303]
[1739531022494,3.69241,2708.3,2707.9,0.4842]
[1739531022706,3.69269,2708.1,2707.9,0.4842]
[1739531023005,3.69249,2708.2,2708.0,0.21111415]
[1739531023280,3.69241,2708.3,2708.0,0.21111415]
[1739531023456,3.69221,2708.4,2708.0,0.21111415]
[1739531023652,4.51388,2708.6,2708.0,4.34268757]
[1739531023844,3.69198,2708.6,2708.0,3.90385415]
[1739531024176,3.69228,2708.4,2708.0,0.21111415]
[1739531024751,0.0075,2708.7,2708.0,0.21111415]
[1739531024960,3.69258,2708.2,2708.0,0.21111415]
[1739531025174,3.69262,2708.1,2708.0,0.21111415]
[1739531025954,4.51452,2708.1,2708.0,0.21111415]
[1739531026151,3.6929,2707.9,2707.6,0.4842]
[1739531026612,3.69305,2707.8,2707.4,0.4842]
[1739531026893,3.69296,2707.9,2707.5,0.45403569]
[1739531027465,0.8219,2708.1,2707.5,0.45403569]
[1739531027661,0.8219,2708.1,2707.4,0.4842]
[1739531029535,0.8111,2708.5,2707.4,0.4842]
[1739531030211,0.8111,2708.3,2707.4,0.4842]
[1739531030582,0.0075,2708.2,2707.4,0.4842]
[1739531031911,0.8186,2708.3,2707.4,0.4842]
[1739531032690,1.20046,2708.3,2707.4,0.4842]
[1739531034935,0.8111,2708.2,2707.4,0.4842]
[1739531036234,0.0075,2708.1,2707.4,0.4842]
[1739531036434,0.0075,2708.1,2707.3,0.3624669]
[1739531036666,0.0075,2707.9,2707.3,0.3624669]
[1739531037510,0.33395754,2707.9,2707.4,0.21180495]
[1739531037703,0.33395754,2707.9,2707.3,0.3624669]
[1739531038394,0.0075,2707.7,2707.3,0.3624669]
[1739531038796,0.8111,2707.8,2707.4,0.4842]
[1739531038996,0.8111,2708.0,2707.4,0.4842]
[1739531039448,0.8111,2708.2,2707.5,0.21177377]
[1739531039735,0.8186,2708.4,2707.6,0.4842]
[1739531039961,1.47145754,2708.4,2707.6,0.4842]
[1739531040169,1.47145754,2708.4,2707.7,0.211546]
[1739531040621,1.47145754,2708.4,2707.8,0.21141332]
[1739531040802,1.47145754,2708.4,2707.6,0.4842]
[1739531041004,1.47145754,2708.4,2707.7,0.21152719]
[1739531041271,1.47145754,2708.4,2707.6,0.4842]
[1739531041408,0.8186,2708.4,2707.7,0.21152719]
[1739531041963,0.8111,2708.4,2707.7,0.21152719]
[1739531042168,0.8111,2708.8,2707.8,0.4842]
[1739531042530,0.8111,2708.8,2707.9,0.211228]
[1739531042927,0.8111,2708.8,2707.8,0.4842]
[1739531044333,0.8111,2708.8,2708.0,0.4842]
[1739531044733,0.7756,2709.0,2708.1,0.69486195]
[1739531045004,0.0075,2708.8,2708.1,0.69486195]
[1739531045202,0.7681,2708.7,2708.1,0.69486195]
[1739531045504,0.7681,2708.7,2708.1,0.4842]
[1739531045787,0.0075,2708.8,2708.1,0.4842]
[1739531045932,0.35916354,2708.7,2708.1,0.4842]
[1739531046132,0.35916354,2708.7,2708.2,0.21054435]
[1739531047333,0.7681,2708.6,2708.2,0.21054435]
[1739531047645,0.7681,2708.6,2708.1,0.4842]
[1739531048048,0.0075,2708.5,2707.4,0.4842]
[1739531048247,0.0075,2708.5,2707.5,0.21134143]
[1739531048459,0.0075,2708.5,2707.6,0.4842]
[1739531048716,0.0075,2708.5,2707.7,0.21110237]
[1739531049290,0.0075,2708.5,2707.8,0.4842]
[1739531049435,0.0075,2708.5,2707.8,0.6951885]
[1739531050043,0.0075,2708.5,2707.9,0.4842]
[1739531050245,0.0075,2708.5,2708.0,0.21076077]
[1739531050738,3.7756,2708.8,2708.1,0.4842]
[1739531051079,1.15316,2708.8,2708.2,0.21058194]
[1739531051264,0.7756,2709.0,2708.2,0.21058194]
[1739531051434,0.7756,2709.0,2708.3,0.4842]
[1739531052378,0.0075,2708.8,2707.6,3.0]
[1739531052681,0.7681,2708.7,2707.7,0.21115124]
[1739531052980,0.0075,2708.6,2707.7,0.4842]
[1739531053279,0.0075,2708.6,2707.9,0.4842]
[1739531053574,0.0075,2708.6,2708.0,0.21078708]
[1739531054175,0.0075,2708.6,2707.9,0.4842]
[1739531054367,3.69945,2708.6,2707.9,0.4842]
[1739531054567,3.69261,2708.2,2707.9,0.4842]
[1739531054769,3.69261,2708.2,2708.0,0.21078708]
[1739531056663,3.69244,2708.3,2708.0,0.21078708]
[1739531057083,3.69221,2708.4,2708.0,0.21078708]
[1739531057395,3.69249,2708.2,2708.0,0.21078708]
[1739531057959,7.38511,2708.2,2708.0,0.21078708]
[1739531058195,3.69249,2708.2,2708.0,0.21078708]
[1739531058760,7.38509,2708.2,2708.0,0.21078708]
[1739531059694,3.69249,2708.2,2708.0,0.21078708]
[1739531059893,7.38462,2708.4,2708.0,0.21078708]
[1739531060071,3.69236,2708.3,2708.1,0.4842]
[1739531060395,3.69236,2708.3,2708.2,0.21059699]
[1739531062577,3.69248,2708.2,2708.1,0.4842]
[1739531063863,3.69248,2708.2,2707.8,0.4842]
[1739531064086,3.69271,2708.1,2707.8,0.4842]
[1739531064406,3.69271,2708.1,2707.9,0.4842]
[1739531065471,3.69276,2708.0,2707.9,0.4842]
[1739531067997,3.69276,2708.0,2707.9,0.69513855]
[1739531068493,3.69276,2708.0,2707.9,0.21093855]
[1739531068811,3.69322,2707.7,2707.5,0.4842]
[1739531069110,7.3865,2707.7,2707.5,0.4842]
[1739531069317,3.6933,2707.6,2707.5,0.4842]
[1739531069815,3.69322,2707.7,2707.5,0.4842]
[1739531070168,7.38648,2707.7,2707.5,0.4842]
[1739531070537,3.6933,2707.6,2707.5,0.4842]
[1739531072363,3.6933,2707.6,2707.3,0.3624669]
[1739531072487,3.69354,2707.5,2707.3,0.8466669]
[1739531074560,3.6933,2707.6,2707.3,0.8466669]
[1739531075671,3.69346,2707.5,2707.3,0.8466669]
[1739531077214,3.6933,2707.6,2707.3,0.8466669]
[1739531077559,3.69358,2707.4,2707.3,0.8466669]
[1739531079351,3.69358,2707.4,2707.3,0.3624669]
[1739531080252,4.515143,2707.4,2707.3,0.3624669]
[1739531080564,3.69385,2707.2,2707.1,0.2488]
[1739531082055,4.44745,2707.2,2707.1,0.2488]
[1739531084125,4.45495,2707.2,2707.1,0.2488]
[1739531085635,7.45495,2707.2,2707.1,0.2488]
[1739531085854,8.96824546,2707.2,2707.1,0.2488]
[1739531086480,8.97574546,2707.2,2707.1,0.2488]
[1739531087397,9.52574546,2707.2,2707.1,1e-05]
[1739531089401,7.39106,2706.0,2705.8,0.1478106]
[1739531089541,3.6955,2706.0,2705.8,0.1478106]
[1739531089739,3.6955,2706.0,2705.9,0.1852055]
[1739531089986,3.6955,2706.0,2705.8,0.1478106]
[1739531090568,3.69562,2705.9,2705.8,0.1478106]
[1739531096991,3.70312,2705.9,2705.8,0.1478106]
[1739531098365,3.69562,2705.9,2705.8,0.33313013]
[1739531098565,3.69562,2705.9,2705.8,0.1478106]
[1739531099212,3.69562,2705.9,2705.8,0.33313013]
[1739531102301,4.510092,2705.9,2705.8,0.33313013]
[1739531103670,3.69562,2705.9,2705.8,0.33313013]
[1739531104503,3.69539,2706.1,2705.8,0.33313013]
[1739531104763,3.69518,2706.3,2705.9,0.4842]
[1739531104940,1.0613,2706.9,2706.1,0.4842]
[1739531105106,3.6949,2706.5,2706.1,0.4842]
[1739531105524,7.38927,2706.7,2706.2,0.18577798]
[1739531105854,3.69472,2706.6,2706.2,0.18577798]
[1739531106257,3.69434,2706.9,2706.3,0.4842]
[1739531106421,3.69434,2706.9,2706.4,3.6949]
[1739531106619,3.69415,2707.0,2706.5,0.4842]
[1739531106807,3.69429,2706.9,2706.5,0.66959458]
[1739531107009,3.6944,2706.8,2706.5,0.66959458]
[1739531107206,3.69429,2706.9,2706.5,0.66959458]
[1739531107456,3.69441,2706.8,2706.5,0.66959458]
[1739531108711,3.69457,2706.7,2706.5,0.66959458]
[1739531109267,3.69392,2707.2,2706.6,3.69467]
[1739531109407,3.69392,2707.2,2706.7,0.92062646]
[1739531109612,3.69392,2707.2,2706.7,1.10547692]
[1739531110160,3.69392,2707.2,2706.7,4.79997692]
[1739531111119,3.69402,2707.1,2706.7,1.10547692]
[1739531113167,3.69392,2707.2,2706.7,1.10547692]
[1739531113716,3.69367,2707.4,2706.7,1.10547692]
[1739531113941,0.839,2707.7,2706.9,0.4842]
[1739531114150,3.69357,2707.5,2707.0,0.18450861]
[1739531114708,3.6933,2707.6,2707.0,3.87855861]
[1739531114951,3.69332,2707.6,2707.1,0.4842]
[1739531115113,3.69344,2707.5,2707.1,0.4842]
[1739531115307,3.69344,2707.5,2707.2,0.18377267]
[1739531115864,1.0965,2708.2,2707.2,0.18377267]
[1739531115865,3.69307,2707.8,2707.3,0.4842]
[1739531116225,3.69307,2707.8,2707.4,0.18342447]
[1739531117653,0.0075,2708.3,2707.5,0.4842]
[1739531117808,3.6927,2708.1,2707.5,4.17762]
[1739531118137,3.6927,2708.1,2707.6,0.18319667]
[1739531118328,3.69297,2707.9,2707.6,0.18319667]
[1739531118654,7.38576,2708.0,2707.6,0.18319667]
[1739531119252,3.69292,2707.9,2707.6,0.18319667]
[1739531119552,3.69288,2708.0,2707.6,0.18319667]
[1739531120172,3.69292,2707.9,2707.6,0.18319667]
[1739531120669,3.69288,2708.0,2707.6,0.18319667]
[1739531120867,3.69258,2708.2,2707.6,0.18319667]
[1739531121052,3.69262,2708.1,2707.6,3.87648667]
[1739531121457,3.69278,2708.0,2707.6,0.18319667]
[1739531121859,3.69262,2708.1,2707.6,3.87648667]
[1739531123172,3.69257,2708.2,2707.6,3.87648667]
[1739531123347,3.69276,2708.0,2707.6,3.87648667]
[1739531123550,3.69257,2708.2,2707.6,3.87648667]
[1739531123860,3.69264,2708.1,2707.6,3.87641667]
[1739531124059,3.69257,2708.2,2707.6,3.87641667]
[1739531124060,3.69257,2708.2,2707.6,4.31246834]
[1739531124232,3.69227,2708.4,2707.8,0.4842]
[1739531124575,0.0075,2708.5,2707.9,3.87520606]
[1739531124576,3.69242,2708.3,2707.9,3.87520606]
[1739531125181,3.69276,2708.0,2707.9,0.18233606]
[1739531125471,3.69389,2707.2,2706.7,0.4842]